[Event "*** SCC Grand Prix: Titled Tuesday Blitz"]
[Site "Chess.com"]
[Date "2020.08.25"]
[Round "1"]
[White "pastouche06"]
[Black "MikeSailer"]
[Result "1-0"]
[WhiteElo "2516"]
[BlackElo "2175"]
[TimeControl "180+1"]
[EndTime "10:06:03 PDT"]
[Termination "pastouche06 won by resignation"]

1. d4 {[%clk 0:03:00.9]} 1... d5 {[%clk 0:01:19.7]} 2. c4 {[%clk 0:02:57.7]}
2... Bf5 {[%clk 0:01:20.2]} 3. Nc3 {[%clk 0:02:47.8]} 3... e6 {[%clk 0:01:20.9]}
4. Nf3 {[%clk 0:02:47.3]} 4... Nc6 {[%clk 0:01:21.7]} 5. Bf4 {[%clk 0:02:36.8]}
5... Nf6 {[%clk 0:01:21.4]} 6. e3 {[%clk 0:02:34.6]} 6... Bb4 {[%clk 0:01:21.6]}
7. Rc1 {[%clk 0:02:25.8]} 7... O-O {[%clk 0:01:21.8]} 8. Be2 {[%clk 0:02:20.7]}
8... Ne4 {[%clk 0:01:22]} 9. O-O {[%clk 0:02:16.3]} 9... h6 {[%clk 0:01:21.6]}
10. h3 {[%clk 0:02:14.7]} 10... a6 {[%clk 0:01:19.8]} 11. cxd5 {[%clk
0:02:06.4]} 11... exd5 {[%clk 0:01:19.8]} 12. a3 {[%clk 0:02:06.7]} 12... Bd6
{[%clk 0:01:17.7]} 13. Nxd5 {[%clk 0:02:03]} 13... Bxf4 {[%clk 0:01:12.1]} 14.
Nxf4 {[%clk 0:02:02.6]} 14... Qd7 {[%clk 0:01:07.3]} 15. Qb3 {[%clk 0:01:51.5]}
15... g5 {[%clk 0:00:58.7]} 16. Nd3 {[%clk 0:01:22.3]} 16... b5 {[%clk 0:00:55]}
17. Nc5 {[%clk 0:01:13.1]} 17... Nxc5 {[%clk 0:00:54.7]} 18. Rxc5 {[%clk
0:01:14]} 18... Be4 {[%clk 0:00:52.7]} 19. Rfc1 {[%clk 0:01:05.8]} 19... Na5
{[%clk 0:00:42.1]} 20. Qc3 {[%clk 0:01:04]} 20... Nc4 {[%clk 0:00:40.9]} 21. Ne5
{[%clk 0:01:00]} 21... Nxe5 {[%clk 0:00:33.8]} 22. Rxe5 {[%clk 0:01:00.9]} 22...
f5 {[%clk 0:00:26.3]} 23. f3 {[%clk 0:00:53]} 23... Bb7 {[%clk 0:00:15.7]} 24.
Qxc7 {[%clk 0:00:52.7]} 24... Qxc7 {[%clk 0:00:16.4]} 25. Rxc7 {[%clk
0:00:53.1]} 25... Rab8 {[%clk 0:00:17]} 26. Ree7 {[%clk 0:00:52.6]} 1-0

[Event "*** SCC Grand Prix: Titled Tuesday Blitz"]
[Site "Chess.com"]
[Date "2020.08.25"]
[Round "1"]
[White "Siniauski"]
[Black "lacafi"]
[Result "1-0"]
[WhiteElo "2508"]
[BlackElo "2143"]
[TimeControl "180+1"]
[EndTime "10:06:06 PDT"]
[Termination "Siniauski won by resignation"]

1. e4 {[%clk 0:03:00.9]} 1... c6 {[%clk 0:02:57.7]} 2. d4 {[%clk 0:03:00.8]}
2... d5 {[%clk 0:02:57.9]} 3. Nc3 {[%clk 0:03:01.4]} 3... dxe4 {[%clk
0:02:57.9]} 4. Nxe4 {[%clk 0:03:02.3]} 4... Nf6 {[%clk 0:02:58.4]} 5. Nxf6+
{[%clk 0:03:02.6]} 5... exf6 {[%clk 0:02:59.3]} 6. c3 {[%clk 0:03:03.3]} 6...
Bd6 {[%clk 0:02:59.6]} 7. Bd3 {[%clk 0:03:03.9]} 7... O-O {[%clk 0:02:59.8]} 8.
Qc2 {[%clk 0:03:04.5]} 8... h5 {[%clk 0:02:59.8]} 9. Be3 {[%clk 0:03:02.7]} 9...
h4 {[%clk 0:03:00]} 10. h3 {[%clk 0:03:00.6]} 10... Re8 {[%clk 0:03:00.3]} 11.
Nf3 {[%clk 0:02:46]} 11... Nd7 {[%clk 0:03:00.3]} 12. O-O-O {[%clk 0:02:35.8]}
12... Nf8 {[%clk 0:02:55.9]} 13. Nxh4 {[%clk 0:02:33.5]} 13... b5 {[%clk
0:02:46.6]} 14. Nf5 {[%clk 0:02:16.4]} 14... Bxf5 {[%clk 0:02:45.7]} 15. Bxf5
{[%clk 0:02:17.3]} 15... Ne6 {[%clk 0:02:39.7]} 16. h4 {[%clk 0:02:12.9]} 16...
Qc8 {[%clk 0:02:25.2]} 17. h5 {[%clk 0:02:06.2]} 17... Qc7 {[%clk 0:02:25.5]}
18. h6 {[%clk 0:01:58.9]} 18... g6 {[%clk 0:02:25.3]} 19. Bxg6 {[%clk 0:01:47]}
19... fxg6 {[%clk 0:02:26.2]} 20. Qxg6+ {[%clk 0:01:47.5]} 20... Kh8 {[%clk
0:02:26.2]} 21. Qxf6+ {[%clk 0:01:45.8]} 21... Kh7 {[%clk 0:02:26.2]} 22. Qf5+
{[%clk 0:01:40.3]} 22... Kh8 {[%clk 0:02:25.9]} 23. Rh4 {[%clk 0:01:16.5]} 23...
Re7 {[%clk 0:02:16.6]} 24. Qf6+ {[%clk 0:01:03.3]} 24... Kh7 {[%clk 0:02:13.7]}
25. Rg4 {[%clk 0:01:03]} 25... Rf8 {[%clk 0:02:08.2]} 26. Qg6+ {[%clk
0:01:01.7]} 26... Kh8 {[%clk 0:02:06.7]} 27. Rh1 {[%clk 0:00:50.3]} 27... Bf4
{[%clk 0:00:53.8]} 28. Qg7+ {[%clk 0:00:31.5]} 28... Rxg7 {[%clk 0:00:50.8]} 29.
hxg7+ {[%clk 0:00:32.4]} 29... Kg8 {[%clk 0:00:50.2]} 30. gxf8=Q+ {[%clk
0:00:30.1]} 30... Kxf8 {[%clk 0:00:49.8]} 31. Rh8+ {[%clk 0:00:30.1]} 31... Ke7
{[%clk 0:00:46.3]} 32. Rh7+ {[%clk 0:00:29.7]} 1-0

[Event "*** SCC Grand Prix: Titled Tuesday Blitz"]
[Site "Chess.com"]
[Date "2020.08.25"]
[Round "1"]
[White "swimmerchess"]
[Black "chessablanca"]
[Result "1-0"]
[WhiteElo "2817"]
[BlackElo "2409"]
[TimeControl "180+1"]
[EndTime "10:06:07 PDT"]
[Termination "swimmerchess won by checkmate"]

1. e4 {[%clk 0:03:00.9]} 1... e5 {[%clk 0:02:58.9]} 2. Nf3 {[%clk 0:03:00.6]}
2... Nc6 {[%clk 0:02:59.3]} 3. Bb5 {[%clk 0:03:00]} 3... a6 {[%clk 0:02:59.2]}
4. Ba4 {[%clk 0:03:00]} 4... Nf6 {[%clk 0:02:59.7]} 5. O-O {[%clk 0:02:59.6]}
5... Be7 {[%clk 0:03:00]} 6. Re1 {[%clk 0:03:00.2]} 6... b5 {[%clk 0:03:00.3]}
7. Bb3 {[%clk 0:03:00.8]} 7... O-O {[%clk 0:03:00.7]} 8. c3 {[%clk 0:03:01.4]}
8... d6 {[%clk 0:03:00.8]} 9. h3 {[%clk 0:03:00.9]} 9... Na5 {[%clk 0:03:00.7]}
10. Bc2 {[%clk 0:03:00.7]} 10... c5 {[%clk 0:03:01.2]} 11. d4 {[%clk 0:03:01.6]}
11... Qc7 {[%clk 0:03:01.4]} 12. Nbd2 {[%clk 0:03:01]} 12... cxd4 {[%clk
0:02:59]} 13. cxd4 {[%clk 0:03:01.9]} 13... Nc6 {[%clk 0:02:59.4]} 14. Nb3
{[%clk 0:03:02.3]} 14... a5 {[%clk 0:02:56.3]} 15. Be3 {[%clk 0:03:02.4]} 15...
a4 {[%clk 0:02:29.3]} 16. Nbd2 {[%clk 0:03:02.3]} 16... Bd7 {[%clk 0:02:26]} 17.
Rc1 {[%clk 0:03:02.7]} 17... Rfc8 {[%clk 0:02:21.7]} 18. Qe2 {[%clk 0:03:02.7]}
18... Nb4 {[%clk 0:02:18.5]} 19. Bb1 {[%clk 0:02:51.1]} 19... Qxc1 {[%clk
0:02:16.5]} 20. Rxc1 {[%clk 0:02:52]} 20... Rxc1+ {[%clk 0:02:16.9]} 21. Kh2
{[%clk 0:02:52.7]} 21... exd4 {[%clk 0:01:57.4]} 22. Nxd4 {[%clk 0:02:52.2]}
22... Rac8 {[%clk 0:01:48.4]} 23. a3 {[%clk 0:02:51.4]} 23... Nc6 {[%clk
0:01:45.4]} 24. Nxb5 {[%clk 0:02:51.1]} 24... d5 {[%clk 0:01:43.1]} 25. Ba2
{[%clk 0:02:37.5]} 25... Ne5 {[%clk 0:01:25.3]} 26. exd5 {[%clk 0:02:25.1]}
26... h5 {[%clk 0:01:15.9]} 27. d6 {[%clk 0:02:24.3]} 27... Neg4+ {[%clk
0:01:06]} 28. hxg4 {[%clk 0:02:11.9]} 28... Nxg4+ {[%clk 0:01:06.9]} 29. Kg3
{[%clk 0:02:09.8]} 29... h4+ {[%clk 0:01:04.2]} 30. Kf3 {[%clk 0:02:09.4]} 30...
Bf6 {[%clk 0:00:33.7]} 31. Nd4 {[%clk 0:01:46]} 31... Ne5+ {[%clk 0:00:13.4]}
32. Ke4 {[%clk 0:01:45.6]} 32... Ng4 {[%clk 0:00:12.3]} 33. Nf5 {[%clk
0:01:30.8]} 33... Bc6+ {[%clk 0:00:08.7]} 34. Kf4 {[%clk 0:01:29]} 34... Ne5
{[%clk 0:00:05.7]} 35. Ne7+ {[%clk 0:01:25.9]} 35... Kh8 {[%clk 0:00:05]} 36.
Qh5# {[%clk 0:01:23]} 1-0

[Event "*** SCC Grand Prix: Titled Tuesday Blitz"]
[Site "Chess.com"]
[Date "2020.08.25"]
[Round "1"]
[White "Kopytkin"]
[Black "Yaacovn"]
[Result "1-0"]
[WhiteElo "2432"]
[BlackElo "2815"]
[TimeControl "180+1"]
[EndTime "10:06:14 PDT"]
[Termination "Kopytkin won on time"]

1. e4 {[%clk 0:02:56.3]} 1... c6 {[%clk 0:02:53.8]} 2. d4 {[%clk 0:02:55.7]}
2... d5 {[%clk 0:02:53.3]} 3. exd5 {[%clk 0:02:56.6]} 3... cxd5 {[%clk
0:02:52.2]} 4. c4 {[%clk 0:02:57.2]} 4... Nf6 {[%clk 0:02:52]} 5. Nc3 {[%clk
0:02:57.8]} 5... e6 {[%clk 0:02:51.8]} 6. Nf3 {[%clk 0:02:57]} 6... Be7 {[%clk
0:02:51.9]} 7. Bd3 {[%clk 0:02:57]} 7... dxc4 {[%clk 0:02:51.8]} 8. Bxc4 {[%clk
0:02:57.3]} 8... O-O {[%clk 0:02:52]} 9. O-O {[%clk 0:02:57.4]} 9... Nc6 {[%clk
0:02:52.3]} 10. Re1 {[%clk 0:02:57.7]} 10... b6 {[%clk 0:02:51.9]} 11. Be3
{[%clk 0:02:57.5]} 11... Bb7 {[%clk 0:02:51.6]} 12. Rc1 {[%clk 0:02:57.6]} 12...
Rc8 {[%clk 0:02:50.1]} 13. Bd3 {[%clk 0:02:51.9]} 13... Nb4 {[%clk 0:02:44.5]}
14. Bb1 {[%clk 0:02:51.7]} 14... Nbd5 {[%clk 0:02:41.6]} 15. Ne5 {[%clk
0:02:50.8]} 15... Nxe3 {[%clk 0:02:23]} 16. Rxe3 {[%clk 0:02:47]} 16... g6
{[%clk 0:02:21.1]} 17. Qd2 {[%clk 0:02:32.3]} 17... Nd5 {[%clk 0:02:17.9]} 18.
Rh3 {[%clk 0:02:24.6]} 18... Bg5 {[%clk 0:02:13.6]} 19. Qd1 {[%clk 0:02:14.4]}
19... Bxc1 {[%clk 0:02:09.7]} 20. Qxc1 {[%clk 0:02:14.2]} 20... Qf6 {[%clk
0:01:29.6]} 21. Nd7 {[%clk 0:01:44.9]} 21... Qf4 {[%clk 0:01:14.6]} 22. Qe1
{[%clk 0:01:42.3]} 22... Nxc3 {[%clk 0:01:05.7]} 23. bxc3 {[%clk 0:01:37.7]}
23... Rfd8 {[%clk 0:01:04.9]} 24. Ne5 {[%clk 0:01:37.5]} 24... Kg7 {[%clk
0:00:23.4]} 25. g3 {[%clk 0:01:37.3]} 25... Qg5 {[%clk 0:00:19.7]} 26. f4 {[%clk
0:01:32.4]} 26... Qe7 {[%clk 0:00:19.6]} 27. Qe3 {[%clk 0:01:27.8]} 27... Ba8
{[%clk 0:00:18.1]} 28. f5 {[%clk 0:01:27.6]} 28... exf5 {[%clk 0:00:09.9]} 29.
Qh6+ {[%clk 0:01:26.8]} 29... Kf6 {[%clk 0:00:09.9]} 30. g4 {[%clk 0:01:18.6]}
30... Be4 {[%clk 0:00:06.1]} 31. gxf5 {[%clk 0:01:08.2]} 1-0

[Event "*** SCC Grand Prix: Titled Tuesday Blitz"]
[Site "Chess.com"]
[Date "2020.08.25"]
[Round "1"]
[White "Smascher17"]
[Black "AungTZ"]
[Result "1-0"]
[WhiteElo "2511"]
[BlackElo "2137"]
[TimeControl "180+1"]
[EndTime "10:06:14 PDT"]
[Termination "Smascher17 won by resignation"]

1. e4 {[%clk 0:03:00.9]} 1... c5 {[%clk 0:02:59.3]} 2. Nf3 {[%clk 0:03:01]} 2...
Nc6 {[%clk 0:02:59.3]} 3. d4 {[%clk 0:03:01.1]} 3... cxd4 {[%clk 0:02:59.3]} 4.
Nxd4 {[%clk 0:03:00.9]} 4... Nf6 {[%clk 0:02:59.4]} 5. Nc3 {[%clk 0:03:00.8]}
5... d6 {[%clk 0:02:59.4]} 6. Bg5 {[%clk 0:03:00.1]} 6... e6 {[%clk 0:02:58.8]}
7. f4 {[%clk 0:02:55.6]} 7... Be7 {[%clk 0:02:56.7]} 8. Qd2 {[%clk 0:02:55.5]}
8... h6 {[%clk 0:02:55.6]} 9. Bxf6 {[%clk 0:02:51.9]} 9... Bxf6 {[%clk
0:02:55.4]} 10. Ndb5 {[%clk 0:02:52]} 10... O-O {[%clk 0:02:22.5]} 11. Nxd6
{[%clk 0:02:40.5]} 11... Bxc3 {[%clk 0:02:21.6]} 12. bxc3 {[%clk 0:02:40.2]}
12... e5 {[%clk 0:02:18.6]} 13. f5 {[%clk 0:02:35.2]} 13... Qf6 {[%clk
0:02:08.5]} 14. Bc4 {[%clk 0:02:16.4]} 14... Rd8 {[%clk 0:01:59.8]} 15. O-O-O
{[%clk 0:02:09.9]} 15... Kh7 {[%clk 0:01:00.4]} 16. Bxf7 {[%clk 0:01:59]} 16...
Bd7 {[%clk 0:00:48.3]} 17. Bg6+ {[%clk 0:01:54.8]} 17... Kh8 {[%clk 0:00:47.9]}
18. Nf7+ {[%clk 0:01:54.6]} 18... Kg8 {[%clk 0:00:47.6]} 19. Nxd8 {[%clk
0:01:54.7]} 19... Rxd8 {[%clk 0:00:48.1]} 20. Qe3 {[%clk 0:01:46.3]} 20... Qe7
{[%clk 0:00:40.6]} 21. c4 {[%clk 0:01:44]} 21... Rc8 {[%clk 0:00:37.8]} 22. Rhf1
{[%clk 0:01:31]} 22... Nd4 {[%clk 0:00:28.5]} 23. Rxd4 {[%clk 0:01:19.8]} 23...
exd4 {[%clk 0:00:27.2]} 24. Qxd4 {[%clk 0:01:20.7]} 24... Bc6 {[%clk 0:00:17.1]}
25. f6 {[%clk 0:01:19.7]} 25... gxf6 {[%clk 0:00:16.3]} 26. Rxf6 {[%clk
0:01:04.8]} 26... Rd8 {[%clk 0:00:16.2]} 27. Qc3 {[%clk 0:01:04.3]} 27... Bxe4
{[%clk 0:00:14.2]} 28. Bxe4 {[%clk 0:00:57.3]} 28... Qxe4 {[%clk 0:00:14]} 29.
Qg3+ {[%clk 0:00:57.1]} 29... Kh8 {[%clk 0:00:11.9]} 30. Rxh6+ {[%clk
0:00:56.5]} 1-0

[Event "*** SCC Grand Prix: Titled Tuesday Blitz"]
[Site "Chess.com"]
[Date "2020.08.25"]
[Round "1"]
[White "smshk35"]
[Black "frequentblunders"]
[Result "1-0"]
[WhiteElo "2475"]
[BlackElo "2019"]
[TimeControl "180+1"]
[EndTime "10:06:14 PDT"]
[Termination "smshk35 won by resignation"]

1. e4 {[%clk 0:03:00.9]} 1... e6 {[%clk 0:03:00.2]} 2. d4 {[%clk 0:03:00.5]}
2... d5 {[%clk 0:03:00.7]} 3. Nd2 {[%clk 0:03:00.4]} 3... Nf6 {[%clk 0:03:00.2]}
4. Bd3 {[%clk 0:03:00]} 4... c5 {[%clk 0:02:58.5]} 5. e5 {[%clk 0:03:00.3]} 5...
Nfd7 {[%clk 0:02:58.6]} 6. c3 {[%clk 0:03:00.5]} 6... Nc6 {[%clk 0:02:58.8]} 7.
Ngf3 {[%clk 0:03:00]} 7... f5 {[%clk 0:02:57.4]} 8. exf6 {[%clk 0:02:51.7]} 8...
Nxf6 {[%clk 0:02:57.2]} 9. O-O {[%clk 0:02:51.3]} 9... Bd6 {[%clk 0:02:56.5]}
10. dxc5 {[%clk 0:02:49.2]} 10... Bxc5 {[%clk 0:02:57.4]} 11. c4 {[%clk
0:02:47.5]} 11... O-O {[%clk 0:02:56.2]} 12. b3 {[%clk 0:02:41.1]} 12... d4
{[%clk 0:02:51.7]} 13. a3 {[%clk 0:02:32.8]} 13... a5 {[%clk 0:02:50.2]} 14. Re1
{[%clk 0:02:32.2]} 14... Qd6 {[%clk 0:02:43.4]} 15. Ne4 {[%clk 0:02:25.6]} 15...
Nxe4 {[%clk 0:02:43]} 16. Rxe4 {[%clk 0:02:26.5]} 16... e5 {[%clk 0:02:41.9]}
17. Qc2 {[%clk 0:02:18.6]} 17... Bf5 {[%clk 0:02:38.7]} 18. Re1 {[%clk
0:02:14.1]} 18... Bxd3 {[%clk 0:02:25.8]} 19. Qxd3 {[%clk 0:02:15]} 19... Rae8
{[%clk 0:02:26.2]} 20. Bb2 {[%clk 0:02:10.9]} 20... h6 {[%clk 0:02:20.2]} 21.
Re4 {[%clk 0:02:08.8]} 21... Qg6 {[%clk 0:02:14.8]} 22. Rae1 {[%clk 0:02:05.6]}
22... Rf4 {[%clk 0:02:08.5]} 23. Rxd4 {[%clk 0:01:55.2]} 23... Qxd3 {[%clk
0:01:57.7]} 24. Rxd3 {[%clk 0:01:55.1]} 24... e4 {[%clk 0:01:51.6]} 25. Rd7
{[%clk 0:01:53.3]} 25... Re7 {[%clk 0:01:42.5]} 26. Rxe7 {[%clk 0:01:52.7]}
26... Nxe7 {[%clk 0:01:43.4]} 27. Nd4 {[%clk 0:01:46.7]} 27... Nc6 {[%clk
0:01:37.2]} 28. Rd1 {[%clk 0:01:39.9]} 28... Nxd4 {[%clk 0:01:33.7]} 29. Bxd4
{[%clk 0:01:39.7]} 29... Bxa3 {[%clk 0:01:34.1]} 30. Bc3 {[%clk 0:01:37.6]}
30... Bb4 {[%clk 0:01:31.6]} 31. Bxb4 {[%clk 0:01:37.7]} 31... axb4 {[%clk
0:01:32.4]} 32. Rd7 {[%clk 0:01:35.8]} 32... Rf7 {[%clk 0:01:27.5]} 33. Rd5
{[%clk 0:01:21.1]} 33... Re7 {[%clk 0:01:26.1]} 34. Kf1 {[%clk 0:01:20.8]} 34...
e3 {[%clk 0:01:25.4]} 35. f3 {[%clk 0:01:19.3]} 35... e2+ {[%clk 0:01:24.5]} 36.
Ke1 {[%clk 0:01:19.6]} 36... Kf7 {[%clk 0:01:23.6]} 37. Rb5 {[%clk 0:01:16.2]}
37... Ke6 {[%clk 0:00:59.1]} 38. Kxe2 {[%clk 0:01:14.7]} 38... Kd6+ {[%clk
0:00:57]} 39. Kf2 {[%clk 0:01:13.5]} 39... Kc6 {[%clk 0:00:55.6]} 40. Rxb4
{[%clk 0:01:13.6]} 40... Kc5 {[%clk 0:00:55.9]} 41. Rb5+ {[%clk 0:01:13.6]}
41... Kd4 {[%clk 0:00:56]} 42. g3 {[%clk 0:01:10.2]} 42... Kc3 {[%clk
0:00:56.2]} 43. Rb6 {[%clk 0:01:05.4]} 43... Rd7 {[%clk 0:00:55.4]} 44. Ke3
{[%clk 0:01:01.9]} 44... Rd3+ {[%clk 0:00:53.4]} 45. Kf4 {[%clk 0:01:02.1]}
45... Rd2 {[%clk 0:00:53.2]} 46. h4 {[%clk 0:01:00]} 46... Rb2 {[%clk
0:00:52.8]} 47. Rxb7 {[%clk 0:00:59.5]} 47... Rxb3 {[%clk 0:00:53]} 48. Rxb3+
{[%clk 0:00:59.6]} 1-0

[Event "*** SCC Grand Prix: Titled Tuesday Blitz"]
[Site "Chess.com"]
[Date "2020.08.25"]
[Round "1"]
[White "SharapovEvgeny"]
[Black "sergiochess83"]
[Result "0-1"]
[WhiteElo "2422"]
[BlackElo "2854"]
[TimeControl "180+1"]
[EndTime "10:06:15 PDT"]
[Termination "sergiochess83 won by resignation"]

1. e4 {[%clk 0:02:57.8]} 1... c5 {[%clk 0:02:57.1]} 2. Nf3 {[%clk 0:02:57.2]}
2... e6 {[%clk 0:02:54.8]} 3. d4 {[%clk 0:02:56.8]} 3... cxd4 {[%clk 0:02:55]}
4. Nxd4 {[%clk 0:02:56.7]} 4... Nc6 {[%clk 0:02:55.2]} 5. Nb5 {[%clk 0:02:56.1]}
5... d6 {[%clk 0:02:54.7]} 6. c4 {[%clk 0:02:54.2]} 6... Nf6 {[%clk 0:02:54.3]}
7. N5c3 {[%clk 0:02:53.1]} 7... Be7 {[%clk 0:02:52.8]} 8. Be2 {[%clk 0:02:53.2]}
8... O-O {[%clk 0:02:53.3]} 9. O-O {[%clk 0:02:52.7]} 9... b6 {[%clk 0:02:53.9]}
10. Be3 {[%clk 0:02:51.9]} 10... Bb7 {[%clk 0:02:54.2]} 11. Nd2 {[%clk
0:02:51.7]} 11... Ne5 {[%clk 0:02:50.5]} 12. f3 {[%clk 0:02:48]} 12... Re8
{[%clk 0:02:49.1]} 13. Rc1 {[%clk 0:02:47.1]} 13... Rc8 {[%clk 0:02:41.3]} 14.
Qe1 {[%clk 0:02:45]} 14... Qc7 {[%clk 0:02:35.9]} 15. Qf2 {[%clk 0:02:43.8]}
15... Qb8 {[%clk 0:02:36]} 16. Rfd1 {[%clk 0:02:43.1]} 16... Bf8 {[%clk
0:02:27.4]} 17. a3 {[%clk 0:02:42.4]} 17... h6 {[%clk 0:02:16.5]} 18. b4 {[%clk
0:02:40.8]} 18... d5 {[%clk 0:02:15.5]} 19. cxd5 {[%clk 0:02:38.7]} 19... exd5
{[%clk 0:02:15.5]} 20. Nxd5 {[%clk 0:02:38.3]} 20... Bxd5 {[%clk 0:02:01.5]} 21.
exd5 {[%clk 0:02:37.3]} 21... Rxc1 {[%clk 0:01:59]} 22. Rxc1 {[%clk 0:02:36.6]}
22... Nxd5 {[%clk 0:01:59.6]} 23. Bd4 {[%clk 0:02:35.1]} 23... Nf4 {[%clk
0:01:59.6]} 24. Bxe5 {[%clk 0:02:17]} 24... Qxe5 {[%clk 0:01:55.3]} 25. Bf1
{[%clk 0:02:15.4]} 25... Qb2 {[%clk 0:01:44.1]} 26. Rc7 {[%clk 0:02:09.2]} 26...
Qxa3 {[%clk 0:01:38.3]} 27. g3 {[%clk 0:01:54.1]} 27... Ne6 {[%clk 0:01:32.1]}
28. Rb7 {[%clk 0:01:46.2]} 28... Bxb4 {[%clk 0:01:26.4]} 29. Nc4 {[%clk
0:01:45.7]} 29... Qa1 {[%clk 0:01:00.4]} 30. Kg2 {[%clk 0:01:40]} 30... Bc5
{[%clk 0:00:59.7]} 31. Qd2 {[%clk 0:01:37.1]} 31... Nd4 {[%clk 0:00:58.1]} 32.
Qd3 {[%clk 0:01:14]} 32... a5 {[%clk 0:00:39.4]} 33. Nxb6 {[%clk 0:01:12.7]}
33... Qb2+ {[%clk 0:00:35.4]} 34. Kh3 {[%clk 0:00:55.7]} 34... Bxb6 {[%clk
0:00:35.5]} 35. Qc4 {[%clk 0:00:46.4]} 35... Rf8 {[%clk 0:00:35.5]} 0-1

[Event "*** SCC Grand Prix: Titled Tuesday Blitz"]
[Site "Chess.com"]
[Date "2020.08.25"]
[Round "1"]
[White "BillieKimbah"]
[Black "eightbyeightchess"]
[Result "1-0"]
[WhiteElo "2871"]
[BlackElo "2428"]
[TimeControl "180+1"]
[EndTime "10:06:25 PDT"]
[Termination "BillieKimbah won by resignation"]

1. d4 {[%clk 0:03:00.9]} 1... d5 {[%clk 0:03:00.2]} 2. Nf3 {[%clk 0:03:00.2]}
2... Nf6 {[%clk 0:03:00.3]} 3. Bg5 {[%clk 0:03:00.2]} 3... Bf5 {[%clk
0:02:59.7]} 4. Bxf6 {[%clk 0:02:57.7]} 4... exf6 {[%clk 0:02:59.5]} 5. e3 {[%clk
0:02:57.3]} 5... Bd6 {[%clk 0:02:59.4]} 6. c4 {[%clk 0:02:54]} 6... c6 {[%clk
0:02:56]} 7. cxd5 {[%clk 0:02:51.2]} 7... cxd5 {[%clk 0:02:43.4]} 8. Nc3 {[%clk
0:02:50.9]} 8... O-O {[%clk 0:02:36.4]} 9. Be2 {[%clk 0:02:44.1]} 9... Nd7
{[%clk 0:02:27.6]} 10. Qb3 {[%clk 0:02:32.2]} 10... Nb6 {[%clk 0:02:24.8]} 11.
O-O {[%clk 0:02:30.7]} 11... Rc8 {[%clk 0:02:12.8]} 12. Rfc1 {[%clk 0:02:30.3]}
12... Bb8 {[%clk 0:02:09.1]} 13. Nd2 {[%clk 0:02:10.2]} 13... Qd6 {[%clk
0:02:04.9]} 14. g3 {[%clk 0:02:10.1]} 14... Be6 {[%clk 0:01:40.4]} 15. a4 {[%clk
0:01:50.9]} 15... Qd7 {[%clk 0:01:28.1]} 16. a5 {[%clk 0:01:41.2]} 16... Nc4
{[%clk 0:01:28.4]} 17. Nxc4 {[%clk 0:01:39.7]} 17... dxc4 {[%clk 0:01:27.6]} 18.
Qc2 {[%clk 0:01:37.8]} 18... b5 {[%clk 0:01:17.6]} 19. axb6 {[%clk 0:01:34]}
19... axb6 {[%clk 0:01:18.5]} 20. Qa4 {[%clk 0:01:28.3]} 20... Qb7 {[%clk
0:01:10.7]} 21. Bf1 {[%clk 0:01:17.2]} 21... Bd7 {[%clk 0:00:54.2]} 22. Qb4
{[%clk 0:01:17.2]} 22... Bc6 {[%clk 0:00:48.2]} 23. Qxc4 {[%clk 0:01:12]} 23...
Bf3 {[%clk 0:00:37.9]} 24. Qa6 {[%clk 0:01:09.2]} 24... Qc6 {[%clk 0:00:26.6]}
25. Qa4 {[%clk 0:00:58.5]} 25... Qe6 {[%clk 0:00:25.6]} 26. Qb5 {[%clk
0:00:52.2]} 26... h5 {[%clk 0:00:23.6]} 27. Bg2 {[%clk 0:00:48.7]} 27... Bxg2
{[%clk 0:00:23.3]} 28. Kxg2 {[%clk 0:00:49.6]} 28... h4 {[%clk 0:00:24.1]} 29.
Qh5 {[%clk 0:00:45.1]} 29... hxg3 {[%clk 0:00:24.4]} 30. hxg3 {[%clk 0:00:45.3]}
30... Qc6+ {[%clk 0:00:15.8]} 31. d5 {[%clk 0:00:44.3]} 1-0

[Event "*** SCC Grand Prix: Titled Tuesday Blitz"]
[Site "Chess.com"]
[Date "2020.08.25"]
[Round "1"]
[White "Vuk2000"]
[Black "MF1966Idrisov"]
[Result "1-0"]
[WhiteElo "2717"]
[BlackElo "2380"]
[TimeControl "180+1"]
[EndTime "10:06:25 PDT"]
[Termination "Vuk2000 won by resignation"]

1. d4 {[%clk 0:03:00.9]} 1... d6 {[%clk 0:02:58.5]} 2. Bg5 {[%clk 0:02:58.8]}
2... f5 {[%clk 0:02:54.6]} 3. Nf3 {[%clk 0:02:55]} 3... Nf6 {[%clk 0:02:51.7]}
4. Bxf6 {[%clk 0:02:51.4]} 4... exf6 {[%clk 0:02:51.7]} 5. e3 {[%clk 0:02:48.3]}
5... d5 {[%clk 0:02:50.3]} 6. c4 {[%clk 0:02:47.9]} 6... c6 {[%clk 0:02:49.9]}
7. cxd5 {[%clk 0:02:42.6]} 7... cxd5 {[%clk 0:02:49.4]} 8. Nc3 {[%clk
0:02:42.2]} 8... Nc6 {[%clk 0:02:49.1]} 9. Qb3 {[%clk 0:02:40.3]} 9... Bb4
{[%clk 0:02:47]} 10. Bb5 {[%clk 0:02:37.3]} 10... Bxc3+ {[%clk 0:02:31.5]} 11.
Qxc3 {[%clk 0:02:33.8]} 11... Bd7 {[%clk 0:02:26.8]} 12. O-O {[%clk 0:02:28.2]}
12... O-O {[%clk 0:02:21.8]} 13. Rac1 {[%clk 0:02:24.2]} 13... Ne7 {[%clk
0:02:21.2]} 14. Bd3 {[%clk 0:02:12.9]} 14... Qb6 {[%clk 0:02:12.6]} 15. Qa3
{[%clk 0:02:12.9]} 15... Rfe8 {[%clk 0:02:03.5]} 16. Rc5 {[%clk 0:02:10.5]}
16... Be6 {[%clk 0:01:57.6]} 17. Rfc1 {[%clk 0:02:03.5]} 17... Rac8 {[%clk
0:01:48.7]} 18. b4 {[%clk 0:01:47.3]} 18... Kf7 {[%clk 0:01:41.6]} 19. Nd2
{[%clk 0:01:37.4]} 19... Rxc5 {[%clk 0:01:34.5]} 20. dxc5 {[%clk 0:01:30.6]}
20... Qc7 {[%clk 0:01:30.7]} 21. Qxa7 {[%clk 0:01:30.2]} 21... Nc6 {[%clk
0:01:29.6]} 22. Qa4 {[%clk 0:01:25.1]} 22... d4 {[%clk 0:01:29.4]} 23. exd4
{[%clk 0:01:17.4]} 23... Nxd4 {[%clk 0:01:24.3]} 24. Nc4 {[%clk 0:01:16.2]}
24... Re7 {[%clk 0:01:15.1]} 25. Nd6+ {[%clk 0:01:14.6]} 25... Kg6 {[%clk
0:01:15]} 26. b5 {[%clk 0:01:08.7]} 26... Nf3+ {[%clk 0:00:39.9]} 27. gxf3
{[%clk 0:01:04.6]} 27... h5 {[%clk 0:00:40]} 28. Qf4 {[%clk 0:01:02.8]} 28... b6
{[%clk 0:00:39.4]} 29. Kh1 {[%clk 0:00:52.4]} 29... bxc5 {[%clk 0:00:33.4]} 30.
Bxf5+ {[%clk 0:00:50.1]} 30... Bxf5 {[%clk 0:00:30.5]} 31. Qxf5+ {[%clk
0:00:51]} 31... Kh6 {[%clk 0:00:29.9]} 32. Rg1 {[%clk 0:00:51.6]} 1-0